Cogmind - Beta 14 @@@ ROGUE MODE // 2024.10.17 @ 15:32:42 Player: carterz30cal Result: Destroyed by G-47 Trooper with Particle Gun Performance ------------- Evolutions (0) 0 Regions Visited (1) 200 Robots Destroyed (21) 105 Value Destroyed (493) 493 Prototype IDs (2) 40 Alien Tech Used (0) 0 Bonus (0) 0 TOTAL SCORE: 838 Bonus ------- None Cogmind --------- Core Integrity 0/250 Matter 199/300 Energy 100/100 System Corruption 0% Temperature Cool (9) Movement Walking (120) Location -10/Materials Parts ------- > --- POWER (1) -------- (None) > --- PROPULSION (2) --- Aluminum Leg > --- UTILITY (2) ------ (None) > --- WEAPON (2) ------- Small Laser > --- INVENTORY (5) ---- Light Treads Heat Sink Grenade Launcher Grenade Launcher Grenade Launcher Peak State ------------ > --- POWER ------------ Ion Engine > --- PROPULSION ------- Light Treads Light Treads > --- UTILITY ---------- Small Storage Unit Seismic Detector > --- WEAPON ----------- Small Laser Beam Cannon > --- INVENTORY -------- Ion Engine Light Treads Light Treads Light Treads Light Treads Light Treads High-capacity Battery Grenade Launcher [Rating: 7] Favorites ----------- Power Ion Engine Engine Ion Engine Propulsion Light Treads Treads Light Treads Leg Aluminum Leg Utility Small Storage Unit Device Seismic Detector Storage Small Storage Unit Processor Signal Interpreter Weapon Beam Cannon Energy Gun Small Laser Energy Cannon Beam Cannon Launcher Grenade Launcher Build | -11 -10 ------- Run | Yrd Mat Slots Evolved . | . . Power . | . . Propulsion . | . . Utility . | . . Weapon . | . . Parts Attached 18 | 6 12 Power 2 | 1 1 Engine 2 | 1 1 Core . | . . Reactor . | . . Propulsion 7 | 2 5 Treads 5 | 2 3 Leg 2 | . 2 Wheel . | . . Hover . | . . Flight . | . . Utility 3 | 1 2 Device 1 | . 1 Storage 1 | 1 . Processor 1 | . 1 Hackware . | . . Protection . | . . Artifact . | . . Weapon 6 | 2 4 Energy Gun 3 | 2 1 Energy Cannon 2 | . 2 Ballistic Gun . | . . Ballistic Cannon . | . . Launcher 1 | . 1 Special Weapon . | . . Impact Weapon . | . . Slashing Weapon . | . . Piercing Weapon . | . . Special Melee Weapon . | . . Unidentified Prototypes . | . . Parts Lost 6 | . 6 Power . | . . Propulsion 4 | . 4 Utility . | . . Weapon 2 | . 2 Highest Loss Streak 4 | . 4 To Critical Strikes 1 | . 1 Average Slot Usage (%) 88 | . 88 Engine 13 | . 13 Treads 26 | . 26 Device 4 | . 4 Storage 13 | . 13 Processor 2 | . 2 Energy Gun 10 | . 10 Energy Cannon 16 | . 16 Peak Build Rating 7 | 6 7 Average Rating 6 | 5 6 On Entrance 3 | . 6 Naked Turns 29 | . 29 Heaviest Build 17 | 12 17 Greatest Support 40 | 40 40 Greatest Overweight (x) . | . . Average Overweight (x) . | . . Largest Inventory Capacity 8 | 8 8 Average Capacity 7 | 7 7 Most Carried 8 | 1 8 Average Carried 6 | . 7 Final Capacity 8 | 8 5 Final Carried 5 | 1 5 Class Distribution -------------------- 100% | Mutant Dominant Class ---------------- Mutant | -10/Materials Resources | -11 -10 ----------- Run | Yrd Mat Matter Collected 347 | 250 97 Remotely . | . . Salvage Created 664 | 34 630 Parts 52 | 5 47 Haulers Intercepted 1 | . 1 Recyclers Shooed 1 | 1 . Parts Field Recycled . | . . Retrieved Matter . | . . Parts Self-Destructed . | . . Prevented . | . . Kills | -11 -10 ------- Run | Yrd Mat Combat Hostiles Destroyed 13 | . 13 Guns 1 | . 1 Cannons 12 | . 12 Classes Destroyed 6 | 2 4 Worker 2 | 1 1 Tunneler 2 | 1 1 Hauler 1 | . 1 Watcher 3 | . 3 Swarmer 2 | . 2 Grunt 11 | . 11 Best Kill Streak 2 | 2 2 Combat Bots Only 2 | . 2 Max Kills in Single Turn 1 | 1 1 Gunslinging . | . . Exploded . | . . Melee . | . . Uniques/NPCs Destroyed . | . . Combat | -11 -10 -------- Run | Yrd Mat Hostile Shots Fired 113 | . 113 Missed 20 | . 20 Damage Taken 1125 | . 1125 Core 263 | . 263 Absorbed by Shields . | . . Core Remaining (%) 100 | 100 . Volleys Fired 76 | 10 66 Largest 2 | 2 2 Hottest 120 | 80 120 Shots Fired 139 | 20 119 Gun 58 | 20 38 Cannon 81 | . 81 Launcher . | . . Special . | . . Kinetic . | . . Thermal 139 | 20 119 Explosive . | . . Electromagnetic . | . . Robot Hit Streak 7 | 7 7 Robot Miss Streak 5 | 2 5 Penetration Max . | . . Secondary Targets . | . . Shots Hit Robots 76 | 12 64 Core Hits 28 | 3 25 Critical Kills . | . . Critical Parts Destroyed . | . . Critical Strikes . | . . Melee Attacks . | . . Impact . | . . Slashing . | . . Piercing . | . . Sneak Attacks . | . . Combat Hostiles . | . . Follow-up Attacks . | . . Damage Inflicted 1153 | 136 1017 Guns 341 | 136 205 Cannons 800 | . 800 Explosions . | . . Melee . | . . Ramming 12 | . 12 Kinetic . | . . Thermal 1141 | 136 1005 Explosive . | . . Electromagnetic . | . . Impact . | . . Slashing . | . . Piercing . | . . Highest Corruption . | . . Average Corruption . | . . Corruption Purged . | . . Corruption Blocked . | . . Overload Shots . | . . Overflow Damage . | . . Projectiles . | . . Explosions . | . . Melee . | . . Knockbacks . | . . Impact . | . . Kinetic . | . . Secondary . | . . Self-Inflicted Damage . | . . Shots . | . . Rammed 3 | . 3 Targets Rammed 9 | . 9 Kicked 5 | . 5 Crushed 1 | . 1 Highest Temperature 520 | 90 520 Average Temperature 120 | 40 129 Received Heat Transfer 609 | . 609 Effects 9 | . 9 Shutdowns 1 | . 1 Interference 3 | . 3 Matter Decay 2 | . 2 Damage (minor) 1 | . 1 Damage (major) 2 | . 2 Siege Activations . | . . Robots Corrupted . | . . Combat Hostiles . | . . Parts Fried . | . . Impact Corruptions . | . . Robots Melted . | . . Combat Hostiles . | . . Parts Melted 2 | . 2 Heat Transferred 2477 | 300 2177 Parts Sabotaged . | . . Parts Stolen . | . . Parts Stripped . | . . Power Chain Reactions . | . . Alert | -11 -10 ------- Run | Yrd Mat Peak Influence 207 | 10 207 Initial 6 | . 6 Average 80 | 1 89 Maximum Alert Level 1 | . 1 Low Security (%) 92 | 100 91 Level 1 7 | . 8 Level 2 . | . . Level 3 . | . . Level 4 . | . . Level 5 . | . . High Security . | . . Max Security . | . . Squads Dispatched 7 | . 7 Investigation 5 | . 5 Extermination . | . . Reinforcement 2 | . 2 Assault . | . . Garrison . | . . Intercept . | . . Searches Triggered . | . . Construction Impeded . | . . Haulers Reinforced . | . . Active Scanning Responses . | . . Cargo Convoy Interrupts . | . . Stealth | -11 -10 --------- Run | Yrd Mat Distress Signals 1 | . 1 Communications Jammed . | . . Distress Signals . | . . Times Spotted 35 | . 35 Peak Tracking Total 6 | . 6 Tactical Retreats 3 | . 3 Traps | -11 -10 ------- Run | Yrd Mat Traps Triggered 4 | . 4 Indirectly . | . . Trap Hack Attempts . | . . Triggered . | . . Disarmed . | . . Reprogrammed . | . . Reused . | . . Traps Extracted . | . . Installed . | . . Triggered . | . . Machines | -11 -10 ---------- Run | Yrd Mat Machines Disabled 2 | . 2 Max in Single Turn 1 | . 1 Machines Repaired . | . . Machines Dismantled . | . . Machines Sabotaged . | . . Overloaded Fab Kills . | . . Hacking | -11 -10 --------- Run | Yrd Mat Machines Accessed 4 | . 4 Terminals 2 | . 2 Fabricators . | . . Repair Stations . | . . Recycling Units 2 | . 2 Scanalyzers . | . . Garrison Access . | . . Total Hacks 11 | . 11 Successful 6 | . 6 Failed 5 | . 5 Catastrophic . | . . Database Lockouts . | . . Manual 2 | . 2 Terminals 6 | . 6 Fabricators . | . . Repair Stations . | . . Recycling Units 5 | . 5 Scanalyzers . | . . Garrison Access . | . . Terminal Hacks 3 | . 3 Prototype ID Bank 2 | . 2 Emergency Access Points 1 | . 1 Fabricator Hacks . | . . Repair Station Hacks . | . . Recycling Unit Hacks 2 | . 2 Report Inventory 1 | . 1 Retrieve Components 1 | . 1 Scanalyzer . | . . Garrison Access Hacks . | . . Unauthorized Hacks 1 | . 1 Terminals . | . . Fabricators . | . . Repair Stations . | . . Recycling Units 1 | . 1 Reject 1 | . 1 Scanalyzers . | . . Garrison Access . | . . Data Cores Recovered . | . . Used . | . . Hacking Detections 4 | . 4 Full Trace Events 1 | . 1 Feedback Events . | . . Feedback Blocked . | . . Robot Schematics Acquired . | . . Robots Built . | . . Authchips . | . . Time . | . . Total Robot Build Rating . | . . Part Schematics Acquired . | . . Parts Built . | . . Authchips . | . . Time . | . . Total Part Build Rating . | . . Parts Repaired . | . . Time . | . . Parts Recycled . | . . Recycled Matter . | . . Retrieved Matter . | . . Retrieved Components 10 | . 10 Parts Scanalyzed . | . . Part Schematics Acquired . | . . Parts Damaged . | . . Bothacking | -11 -10 ------------ Run | Yrd Mat Used RIF Installer . | . . Robots Hacked . | . . Non-combat . | . . Combat . | . . Robot Hacks Applied . | . . Relay Couplers Released . | . . Fabnet Peak Effective % . | . . Robots Rewired . | . . Allies Hacked . | . . Hacks Repelled . | . . Allies | -11 -10 -------- Run | Yrd Mat Total Allies . | . . Largest Group . | . . Highest-Rated Group . | . . Highest-Rated Ally . | . . Total Orders . | . . Ally Attacks . | . . Total Damage . | . . Kills . | . . Allies Corrupted . | . . Allies Melted . | . . Intel | -11 -10 ------- Run | Yrd Mat Robot Analysis Total . | . . Derelict Logs Recovered . | . . Drone Launches . | . . Drone Recoveries . | . . Exploration | -11 -10 ------------- Run | Yrd Mat Turns Passed 1483 | 159 1324 Spaces Moved 699 | 77 622 Core 60 | 3 57 Treads 624 | 74 550 Legs 15 | . 15 Wheels . | . . Hover . | . . Flight . | . . Fastest Speed 50 | 50 50 Average Speed 149 | 155 148 Slowest Speed 160 | 160 160 Overloaded Moves . | . . Propulsion Burnouts . | . . Robots Hopped . | . . Cave-ins Triggered . | . . Exploration Rate (%) 37 | 6 69 Regions Visited 1 Branch Regions . Pre-discovered Areas . | . . Known Exits Taken . | . . Unknown Exits Taken 1 | 1 . Scrap Searched . | . . Spaces Dug . | . . Terrain Destroyed . | . . Melee . | . . Projectile . | . . AOE . | . . Terrain Rammed . | . . Walls Destroyed . | . . Machines Disabled . | . . Actions | -11 -10 --------- Run | Yrd Mat Total 990 | 93 897 Wait 166 | . 166 Move 698 | 76 622 Hop . | . . Pick Up 14 | 1 13 Fast Attach 13 | 6 7 Attach 3 | . 3 Detach 1 | . 1 Swap 2 | . 2 Drop 8 | . 8 Fire 76 | 10 66 Melee . | . . Ram . | . . Kick 5 | . 5 Crush 4 | . 4 Escape Stasis . | . . Rewire . | . . Trap . | . . Miscellaneous . | . . Route ------- -11/Scrapyard -10/Materials (discovered 3 exits: [*Mat] / *Min x2) History --------- Turn | Location | Event 12 | -11/Scrapyard | Discovered new exit (range 13) 160 | -11/Scrapyard | Entered Materials 335 | -10/Materials | Build established: Mutant 756 | -10/Materials | Discovered new exit (range 15) 828 | -10/Materials | Discovered new exit (range 10) 1270 | -10/Materials | Discovered new exit (range 7) 1293 | -10/Materials | Identified exit to Mines 1406 | -10/Materials | Core integrity fell below 50% 1407 | -10/Materials | Released all parts (4) 1438 | -10/Materials | Lost 4 parts (2n2w) 1459 | -10/Materials | Core integrity fell below 20% 1484 | -10/Materials | Destroyed by G-47 Trooper with Particle Gun Last Messages --------------- 01406_ Slammed into G-47 Trooper. 01406_ Beam Cannon destroyed. 01407_ Lgt. Treads destroyed. 01407_ Released Ion Engine. 01407_ Released Signal Interpreter. 01407_ Released Sml. Storage Unit. 01407_ Released Lgt. Treads. 01410_ G-47 Trooper overheating. 01411_ M-13 Machinist repairs G-47 Trooper. 01412_ Overheating: Matter decay (-56). 01415_ U-05 Engineer lays Concrete. 01420_ Acquired 19 matter. 01436_ Acquired Aluminum Leg. 01451_ Acquired Sml. Laser. 01475_ M-13 Machinist repairs G-34 Mercenary. 01478_ Kicked G-34 Mercenary. 01481_ Kicked G-34 Mercenary out of the way. 01482_ Kicked G-34 Mercenary. 01483_ Aluminum Leg destroyed. 01483_ Kicked G-34 Mercenary. Map ----- +----------------------------------------------------+ | | | | | | | ????????????????????????????? | | ????????????????????????????? | | ????????????????????????????? | | ????????????????????????????? | | ????????######?????#####????? | | ????????# ????##"""##???? | | ???????# "???##"|||"##??? | | #??????# "???#"" ""#??? | | #??????# """?# #??? | | #??????# ?# > #??? | | #??????# ""??# #??? | | #??????#! ""??# #??? | | #??????# "???## ##??? | | #???????? ????## ###### | | ##???????###+####### # !]]# | | ?????????# % + !] # | | ########?# #m! # | | #?# # *# | | """#?# ####+###### = # | | """#?# #?# T #??# ""=# | | """#?# #?# #??# "Y=# | | #?# #?# ####g"" # | | % """### ### + /g@g[# | | """## ## ######### | | """## ## #???????? | | [%/ % T ## #???????? | | ######### ## #???????? | | ????????# ## #???????? | | ????????## ##########???????? | | ?????????# #????????????????? | | ?????????# #????????????????? | | ?????????# #????????????????? | | ?????????# #?????########???? | | ?????????# #?##### #???? | | ?????????# #?# # #???? | | ?????????# ### ]#= """#???? | | ?????????# !/* """#???? | | ??????#### =# """#???? | | ??????# """ # #???? | | ??????# "" ##/#####???? | | ??????# """ #? ???????? | | ??????# + ??????? | | ??????# # ?????? | | ??????# """ # "T" ????? | | ??????# """ #? """ #???? | | ????? """ #?? #???? | | ?????## #??#####???? | +----------------------------------------------------+ Best States ------------- Heat Dissipation 25 Energy Generation 10 Energy Capacity 250 Matter Stores 300 Matter Capacity 300 Sight Range 16 Terrain Scan Density 10 Evasion (%) 55 Recoil Reduction 2 Item Schematics ----------------- None Robot Schematics ------------------ None Fabricated ------------ Nothing Alien Tech Used ----------------- None Achievements -------------- None Challenges ------------ None Game ------ Seed PhaseShadingExpander Manual? 0 Play Time 00:12:34 Cumulative 12.5 hours Start 2024.10.17 @ 15:03:27 End 2024.10.17 @ 15:32:42 Sessions 1 Manual Loads 0 Difficulty Rogue Special Mode None Game No. 23 Rogue 23 Adventurer 0 Explorer 0 Win Type - Total 0 Types 0/0/0/0/0/0/0/0/0 Lore% 7 Gallery% 16 Achievement% 18 Wizard Run 0 Options --------- Layout 0 ASCII 0 Keyboard 0 Movement Arrows Keybinds 0 Fullscreen 1 Font 18/Smallcaps Map View 76x50 Zoom Use 0% Tactical HUD 1 Map Filters NONE Filters NONE Steam 1 RUN: 16dae06a-79d1-446e-bf4e-6fc97d280a9f